bitfinex-derivatives/quotes_ETHF0:USTF0_20250502
["timestamp","ask_amount","ask_price","bid_price","bid_amount"]
[1746197883499,2.80719,1849.5,1849.4,1.35127644]
[1746197884103,2.80719,1849.5,1849.4,0.27022644]
[1746197884305,1.08105,1849.4,1849.3,1.35133644]
[1746197884505,2.80725,1849.4,1849.3,1.35133644]
[1746197884708,1.7262,1849.4,1849.1,1.35139644]
[1746197884909,3.2078,1849.2,1849.1,1.35139644]
[1746197885098,1.08122,1849.1,1849.0,3.06065644]
[1746197885304,2.80742,1849.1,1849.0,3.06065644]
[1746197885502,1.7262,1849.1,1849.0,3.06065644]
[1746197885802,1.08134,1849.0,1848.9,1.08132]
[1746197886007,1.08134,1848.9,1848.8,1.35157644]
[1746197886511,1.08132,1849.0,1848.9,1.08134]
[1746197886708,1.5908,1849.0,1848.9,1.35156644]
[1746197887410,3.824,1849.1,1849.0,1.35150644]
[1746197887607,6.49602,1849.1,1849.0,1.35150644]
[1746197887808,5.4148,1849.1,1849.0,1.35150644]
[1746197888006,6.49602,1849.1,1849.0,1.35150644]
[1746197888311,5.4148,1849.1,1849.0,1.35150644]
[1746197888709,3.824,1849.1,1849.0,1.35150644]
[1746197889009,3.824,1849.1,1849.0,2.76908]
[1746197889213,4.90522,1849.1,1849.0,2.76908]
[1746197889411,6.60022,1849.1,1849.0,2.76908]
[1746197890305,5.519,1849.1,1849.0,2.76908]
[1746197890815,5.519,1849.1,1849.0,3.03930644]
[1746197891011,3.2078,1849.2,1849.1,1.08122]
[1746197891202,3.2078,1849.2,1849.1,3.03924644]
[1746197891409,3.2078,1849.2,1849.1,2.76902]
[1746197891606,3.2078,1849.2,1849.1,3.03924644]
[1746197891911,3.2078,1849.2,1849.1,1.35144644]
[1746197892213,4.28897,1849.2,1849.1,1.35144644]
[1746197892514,4.28897,1849.2,1849.1,1.08122]
[1746197892699,5.95987,1849.2,1849.1,1.08122]
[1746197893115,1.08127,1849.1,1848.9,1.25452644]
[1746197893406,2.75217,1849.1,1849.0,1.08128]
[1746197894820,1.08128,1849.0,1848.9,2.7726]
[1746197895114,1.08134,1848.9,1848.8,1.35158644]
[1746197895316,0.9789,1848.9,1848.8,1.35158644]
[1746197895513,0.9789,1848.9,1848.8,2.96118644]
[1746197895913,17.93945892,1848.9,1847.3,10.62736121]
[1746197896116,3.2078,1847.5,1847.3,7.05010479]
[1746197896307,3.2078,1847.5,1847.3,8.65970479]
[1746197896513,3.2078,1847.5,1847.4,1.6096]
[1746197897221,4.28996,1847.5,1847.4,5.3056]
[1746197897514,4.71753436,1847.5,1847.4,5.3056]
[1746197897908,4.71753436,1847.5,1847.4,3.696]
[1746197898120,1.08222,1847.4,1847.3,7.05010479]
[1746197898314,4.71757436,1847.5,1847.3,7.05010479]
[1746197898515,3.63537436,1847.5,1847.4,1.7448]
[1746197898716,4.71753436,1847.5,1847.4,1.7448]
[1746197899513,3.63537436,1847.5,1847.4,1.7448]
[1746197899919,0.42757436,1847.5,1847.4,7.82702]
[1746197900121,0.42757436,1847.5,1847.4,12.46432]
[1746197900919,3.2078,1847.9,1847.8,1.08198]
[1746197902119,3.2078,1847.9,1847.8,4.77798]
[1746197902312,4.28973,1847.9,1847.8,3.696]
[1746197902512,4.28973,1847.9,1847.8,4.77798]
[1746197902513,3.63579972,1847.9,1847.8,4.77798]
[1746197905222,3.63579972,1847.9,1847.8,9.77798]
[1746197905522,0.42799972,1847.9,1847.8,12.98578]
[1746197905717,3.2078,1848.6,1847.8,11.9038]
[1746197905923,3.2078,1848.6,1848.5,1.08157]
[1746197906320,3.2078,1848.6,1848.5,41.88157]
[1746197906528,4.28935,1848.6,1848.5,41.88157]
[1746197907015,3.2078,1848.6,1848.5,1.08157]
[1746197907216,4.9127,1848.8,1848.7,1.08146]
[1746197907421,3.2078,1848.8,1848.7,1.08146]
[1746197908119,5.95534,1848.8,1848.7,1.08146]
[1746197908423,1.08146,1848.7,1848.6,41.88147]
[1746197908622,2.74756,1848.7,1848.6,41.88147]
[1746197909017,1.6661,1848.7,1848.6,41.88147]
[1746197909213,2.74756,1848.7,1848.6,40.8]
[1746197909418,1.08163,1848.4,1848.3,1.98236]
[1746197909617,3.2078,1848.4,1848.3,1.98236]
[1746197909917,3.2078,1848.6,1848.3,1.98236]
[1746197910115,3.2078,1848.6,1848.5,1.08157]
[1746197910512,3.2078,1848.6,1848.3,0.9007]
[1746197910714,1.08162,1848.5,1848.4,1.08161]
[1746197911020,1.08159,1848.5,1848.4,1.08157]
[1746197911422,1.08164,1848.5,1848.4,1.0816]
[1746197911624,1.5977,1848.5,1848.4,1.0816]
[1746197911927,2.67927,1848.5,1848.4,1.0816]
[1746197912226,1.5977,1848.5,1848.4,1.0816]
[1746197912521,2.67927,1848.5,1848.4,1.0816]
[1746197913631,1.5977,1848.5,1848.4,1.0816]
[1746197914424,2.67927,1848.5,1848.4,1.0816]
[1746197915129,4.28934,1848.6,1848.5,1.08157]
[1746197915320,4.9627,1848.6,1848.5,1.08157]
[1746197915822,4.9627,1848.6,1848.3,4.45901]
[1746197916028,1.08157,1848.5,1848.4,1.6852]
[1746197916224,6.00397,1848.5,1848.4,1.6852]
[1746197916526,6.00397,1848.5,1848.4,2.76678]
[1746197916727,4.9224,1848.5,1848.4,2.76678]
[1746197917325,6.00397,1848.5,1848.4,2.76678]
[1746197917827,6.43004654,1848.5,1848.4,2.76678]
[1746197918933,6.43004654,1848.5,1848.4,1.08158]
[1746197919729,2.14067654,1848.5,1848.4,1.08158]
[1746197919924,0.42607654,1848.5,1848.4,6.08158]
[1746197920128,0.42607654,1848.5,1848.4,12.98538]
[1746197920430,1.08145,1848.8,1848.7,1.0814]
[1746197920625,1.50761185,1848.8,1848.7,1.0814]
[1746197920834,1.08146,1848.7,1848.6,2.77778]
[1746197921027,1.08152,1848.6,1848.5,2.03773]
[1746197921232,1.08152,1848.6,1848.5,1.08153]
[1746197921532,3.13678185,1848.6,1848.5,2.77783]
[1746197921730,3.13678185,1848.6,1848.5,1.6963]
[1746197921930,4.05454185,1848.6,1848.3,4.40576]
[1746197922228,1.08157,1848.5,1848.4,2.78319]
[1746197922435,6.03087,1848.5,1848.4,2.78319]
[1746197922833,6.45703185,1848.5,1848.4,2.78319]
[1746197923736,6.45703185,1848.5,1848.4,1.08159]
[1746197923938,1.08169,1848.3,1848.2,3.73951]
[1746197924128,4.28949,1848.3,1848.2,3.73951]
[1746197924429,4.71565185,1848.3,1848.2,3.73951]
[1746197924934,3.63396185,1848.3,1848.2,2.78331]
[1746197925133,3.63396185,1848.3,1848.2,6.47931]
[1746197925534,4.71565185,1848.3,1848.2,6.47931]
[1746197925734,4.71565185,1848.3,1848.2,5.3976]
[1746197925925,4.71565185,1848.3,1848.2,3.696]
[1746197926126,1.08175,1848.2,1848.1,1.08177]
[1746197926327,2.83235,1848.2,1848.1,1.08177]
[1746197926739,1.7506,1848.2,1848.1,1.08177]
[1746197926928,2.17676185,1848.2,1848.1,1.08177]
[1746197927636,0.42616185,1848.2,1848.1,1.08177]
[1746197928336,2.03836185,1848.2,1848.1,1.08177]
[1746197930230,0.42616185,1848.2,1848.1,2.80327]
[1746197931431,2.17816185,1848.2,1848.1,2.80327]
[1746197931935,3.09406185,1848.2,1848.1,2.80327]
[1746197933339,4.17581185,1848.2,1848.1,2.80327]
[1746197933639,3.09406185,1848.2,1848.1,2.80327]
[1746197934242,4.17581185,1848.2,1848.1,2.80327]
[1746197934445,3.09406185,1848.2,1848.1,2.80327]
[1746197935836,1.34206185,1848.2,1848.1,2.80327]
[1746197936141,0.42616185,1848.2,1848.1,2.80327]
[1746197937441,2.18596185,1848.2,1848.1,2.80327]
[1746197941644,3.2078,1848.3,1848.1,1.7215]
[1746197941840,3.2078,1848.3,1848.2,2.80995]
[1746197942041,4.71770631,1848.3,1848.2,2.80995]
[1746197942241,5.31771631,1848.3,1848.2,6.50595]
[1746197942442,6.39940631,1848.3,1848.2,4.77775]
[1746197943345,7.28600631,1848.3,1848.2,4.77775]
[1746197943540,7.28600631,1848.3,1848.2,1.08175]
[1746197943744,1.08184,1848.1,1848.0,1.08181]
[1746197943946,3.2078,1848.1,1848.0,1.08187]
[1746197944250,3.63601631,1848.1,1848.0,2.76167]
[1746197945148,3.63601631,1848.1,1848.0,6.45767]
[1746197947349,4.8597,1848.1,1848.0,6.45767]
[1746197948651,3.2078,1848.1,1848.0,6.45767]
[1746197951845,3.2078,1848.3,1848.2,1.08175]
[1746197952043,3.2078,1848.3,1848.2,4.91875]
[1746197952446,5.39963816,1848.7,1848.6,1.08152]
[1746197953739,8.99939693,1848.9,1848.6,2.7038]
[1746197953740,5.39963816,1848.9,1848.6,2.7038]
[1746197954055,5.39963816,1848.9,1848.8,1.0814]
[1746197954351,7.05593816,1848.9,1848.8,1.0814]
[1746197955356,7.05593816,1848.9,1848.8,4.7774]
[1746197955357,5.39963816,1848.9,1848.8,4.7774]
[1746197956954,5.39963816,1848.9,1848.8,8.6134]
[1746197957155,3.57499816,1848.9,1848.8,8.6134]
[1746197957558,3.57499816,1848.9,1848.8,13.6134]
[1746197958056,3.57499816,1848.9,1848.8,54.66683489]
[1746197958258,1.7413,1849.3,1849.2,1.08117]
[1746197958855,1.7413,1849.3,1849.1,1.08117]
[1746197959156,4.289,1849.2,1849.0,1.08124]
[1746197959359,1.6841,1849.1,1849.0,1.08124]
[1746197959561,3.68582,1849.1,1849.0,1.08124]
[1746197959758,2.6046,1849.1,1849.0,1.08124]
[1746197961559,3.68582,1849.1,1849.0,1.08124]
[1746197962063,2.6046,1849.1,1849.0,1.08124]
[1746197962260,2.6046,1849.1,1849.0,4.77724]
[1746197963065,3.68582,1849.1,1849.0,4.77724]
[1746197963257,1.08128,1849.0,1848.9,1.08131]
[1746197963459,5.8496,1849.0,1848.8,40.8]
[1746197963654,5.8496,1849.0,1848.9,1.08134]
[1746197964055,2.6418,1849.0,1848.9,1.08134]
[1746197964872,3.2078,1849.2,1848.8,43.50347]
[1746197965166,3.2078,1849.2,1849.1,1.08122]
[1746197965561,5.94597,1849.2,1849.1,1.08122]
[1746197965965,5.94597,1849.2,1848.9,3.776]
[1746197966163,1.657,1849.1,1849.0,1.08128]
[1746197967168,1.657,1849.1,1849.0,4.77728]
[1746197967769,2.73822,1849.1,1849.0,4.77728]
[1746197967968,1.657,1849.1,1849.0,4.77728]
[1746197968267,1.657,1849.1,1849.0,1.08128]
[1746197969169,1.657,1849.1,1849.0,4.77728]
[1746197971372,2.73822,1849.1,1849.0,4.77728]
[1746197971869,2.73822,1849.1,1849.0,3.696]
[1746197972068,2.73822,1849.1,1849.0,1.08128]
[1746197973570,1.657,1849.1,1849.0,1.08128]
[1746197973870,2.73822,1849.1,1849.0,1.08128]
[1746197974570,1.08134,1848.9,1848.8,48.86515]
[1746197974773,2.7635,1849.0,1848.9,1.08134]
[1746197975375,5.97132,1849.0,1848.9,1.08134]
[1746197975562,1.08134,1848.9,1848.8,4.77738]
[1746197975868,3.62744,1848.9,1848.8,4.77738]
[1746197976068,3.62744,1848.9,1848.8,3.696]
[1746197976262,2.5461,1848.9,1848.8,4.7774]
[1746197976963,2.5461,1848.9,1848.8,6.4475]
[1746197979472,0.8639,1848.9,1848.8,6.4475]
[1746197980671,5.8497,1849.0,1848.9,1.08134]
[1746197980870,4.9566,1849.0,1848.9,1.08134]
[1746197981072,4.9566,1849.0,1848.9,6.48084]
[1746197981768,6.03788,1849.0,1848.9,6.48084]
[1746197982468,6.03788,1849.0,1848.9,3.696]
[1746197983566,6.03788,1849.0,1848.9,4.77734]
[1746197984074,6.4628689,1849.0,1848.9,4.77734]
[1746197984268,5.3815889,1849.0,1848.9,4.77734]
[1746197984758,0.4249889,1849.0,1848.9,4.77734]
[1746197984959,0.4249889,1849.0,1848.9,5.61964]
[1746197986473,0.4249889,1849.0,1848.9,14.39564]
[1746197986970,0.4249889,1849.0,1848.9,15.99464]
[1746197988478,3.2078,1849.2,1849.1,1.08122]
[1746197989470,4.9192,1849.2,1849.1,1.08122]
[1746197990375,3.2078,1849.2,1849.1,1.08122]
[1746197990575,3.2078,1849.2,1849.1,2.73902]
[1746197991968,1.08122,1849.1,1849.0,4.77723]
[1746197992175,2.5967,1849.1,1849.0,4.77728]
[1746197997175,3.2078,1849.2,1849.1,1.08122]
[1746197997372,3.2078,1849.2,1849.1,2.67742]
[1746197998570,3.2078,1849.2,1849.1,3.57662]
[1746197998770,3.2078,1849.2,1849.1,4.45632]
[1746198000478,3.2078,1849.4,1849.3,1.08111]
[1746198001169,3.2078,1849.4,1849.3,6.43851]
[1746198002278,2.6004,1849.6,1849.5,1.08099]
[1746198002574,2.5704,1849.8,1849.7,1.08087]
[1746198002779,8.99939693,1850.0,1849.8,1.08081]
[1746198003073,8.99939693,1850.0,1849.8,6.51521]
[1746198003473,8.99939693,1850.0,1849.8,47.31521]
[1746198003674,8.99939693,1850.0,1849.8,50.52301]
[1746198004178,8.99939693,1850.0,1849.8,54.21901]
[1746198004979,1.7163,1850.3,1849.8,54.21901]
[1746198004980,1.7163,1850.3,1850.2,1.08058]
[1746198005177,1.7163,1850.3,1849.9,2.77593]
[1746198005380,3.2078,1850.2,1849.9,3.772]
[1746198005579,3.2078,1850.2,1850.1,1.08064]
[1746198005978,8.07631755,1850.5,1850.4,1.08046]
[1746198006280,11.28411755,1850.5,1850.4,1.08046]
[1746198006480,1.08048,1850.4,1850.1,7.38761]
[1746198006682,3.2078,1850.3,1850.1,6.5478]
[1746198007177,4.28833,1850.3,1850.0,4.77666]
[1746198007369,4.28833,1850.3,1850.0,3.696]
[1746198007370,4.28836,1850.3,1850.0,3.696]
[1746198007575,3.2078,1850.3,1850.0,3.696]
[1746198007881,3.2078,1850.3,1850.1,1.0806]
[1746198008081,3.2078,1850.3,1850.1,1.08064]
[1746198008282,3.2078,1850.3,1850.2,1.08058]
[1746198009183,3.2078,1850.3,1850.2,4.77658]
[1746198009681,3.2078,1850.3,1850.2,5.69128]
[1746198010483,0.8768,1850.5,1850.4,1.08046]
[1746198010681,3.2278,1850.9,1850.2,11.08416]
[1746198010879,4.28798,1850.9,1850.6,1.08031]
[1746198011185,3.2078,1850.9,1850.8,1.08023]
[1746198012177,3.2078,1850.9,1850.8,4.77623]
[1746198012683,9.28797,1850.9,1850.8,3.696]
[1746198013081,9.28797,1850.9,1850.7,1.08024]
[1746198013382,3.2078,1850.9,1850.8,1.08023]
[1746198013776,4.28797,1850.9,1850.7,1.08024]
[1746198014684,3.2078,1850.9,1850.8,1.08023]
[1746198015185,9.0458,1851.1,1851.0,1.08011]
[1746198015384,3.2078,1851.1,1851.0,1.08011]
[1746198016186,3.2078,1851.1,1851.0,5.67511]
[1746198016487,10.40731755,1851.4,1851.3,1.07994]
[1746198016783,4.28756,1851.6,1851.4,1.07985]
[1746198017087,0.8407,1851.5,1851.1,5.5134]
[1746198017279,3.2078,1851.3,1851.2,1.07997]
[1746198017685,3.2078,1851.3,1851.2,1.08]
[1746198018183,5.14744,1851.3,1851.2,3.696]
[1746198019284,5.14748,1851.3,1851.2,1.08]
[1746198019486,1.08,1851.2,1851.1,1.08001]
[1746198019785,4.0675,1851.3,1850.9,41.88013]
[1746198019984,3.2078,1851.1,1851.0,1.08011]
[1746198020184,4.2879,1851.1,1850.9,1.08013]
[1746198020381,0.9026,1851.0,1850.9,1.08013]
[1746198020791,3.2078,1851.1,1851.0,1.08011]
[1746198020993,4.28786,1851.1,1851.0,1.08011]
[1746198021191,4.28786,1851.1,1851.0,4.77611]
[1746198021391,3.2078,1851.1,1851.0,4.77611]
[1746198022691,4.9653,1851.1,1851.0,4.77611]
[1746198022886,1.7623,1851.3,1851.2,1.08]
[1746198023086,1.7623,1851.3,1851.2,4.776]
[1746198023292,4.9701,1851.3,1851.2,4.776]
[1746198023484,3.2078,1851.3,1851.2,4.776]
[1746198023684,3.2078,1851.3,1851.2,5.6669]
[1746198023887,3.2078,1851.3,1851.2,7.291]
[1746198025092,1.7575,1851.4,1851.3,1.07994]
[1746198025295,1.7575,1851.4,1851.2,6.211]
[1746198025493,2.8374,1851.4,1851.2,4.77595]
[1746198025697,2.74894,1851.3,1851.2,4.77595]
[1746198025993,5.8038,1851.3,1851.2,4.77595]
[1746198026197,2.596,1851.3,1851.2,4.77595]
[1746198026790,6.88374,1851.3,1851.2,3.696]
[1746198027091,5.8038,1851.3,1851.2,4.776]
[1746198027291,5.8038,1851.3,1851.2,1.08]
[1746198028090,5.8038,1851.3,1851.2,4.776]
[1746198028692,3.2078,1851.5,1851.4,1.07988]
[1746198028898,5.7407,1851.5,1851.4,1.07988]
[1746198029194,5.7407,1851.5,1851.4,4.77588]
[1746198030602,4.0464,1851.5,1851.4,4.77588]
[1746198030793,0.8386,1851.5,1851.4,4.77588]
[1746198030985,4.9021,1851.7,1851.4,6.36108]
[1746198031193,3.2078,1851.9,1851.7,1.07971]
[1746198031392,3.2078,1851.9,1851.8,1.07965]
[1746198031895,6.04569,1851.9,1851.7,1.07966]
[1746198032094,3.2078,1851.9,1851.8,1.07965]
[1746198032395,4.28739,1851.9,1851.8,1.07965]
[1746198032698,4.9661,1851.9,1851.8,1.07965]
[1746198033501,3.2078,1851.9,1851.8,1.07965]
[1746198034294,4.28739,1851.9,1851.8,4.77565]
[1746198034497,5.97579,1851.9,1851.8,4.77565]
[1746198034687,4.8962,1851.9,1851.8,4.77565]
[1746198035100,5.97579,1851.9,1851.8,4.77565]
[1746198035402,4.8962,1851.9,1851.8,1.07965]
[1746198035699,5.97579,1851.9,1851.8,1.07965]
[1746198036303,4.8962,1851.9,1851.8,1.07965]
[1746198037102,1.07967,1851.8,1851.7,1.07967]
[1746198037295,1.5939,1851.8,1851.4,1.7398]
[1746198037500,3.2078,1851.6,1851.5,1.07982]
[1746198037905,4.8017,1851.6,1851.5,1.07982]
[1746198038402,4.8017,1851.6,1851.5,2.81962]
[1746198038599,5.88146,1851.6,1851.5,1.07982]
[1746198038803,4.8017,1851.6,1851.5,1.07982]
[1746198039007,5.6824,1851.6,1851.5,1.07982]
[1746198039701,6.76216,1851.6,1851.5,1.07982]
[1746198040200,1.07987,1851.5,1851.4,1.07983]
[1746198040400,2.68547,1851.5,1851.4,1.07983]
[1746198041105,1.6056,1851.5,1851.4,1.07983]
[1746198042206,2.68542,1851.5,1851.4,1.07983]
[1746198042597,1.07988,1851.4,1851.3,1.07989]
[1746198042804,1.07998,1851.3,1851.2,1.07994]
[1746198043007,0.9087,1851.3,1851.2,1.07994]
[1746198043303,1.08,1851.2,1851.1,1.08]
[1746198043502,4.046,1851.2,1851.1,1.08]
[1746198043703,5.6958,1851.2,1851.1,1.08]
[1746198043902,5.6958,1851.2,1851.1,2.6772]
[1746198044105,4.8576,1851.2,1851.1,2.6772]
[1746198044305,3.2078,1851.2,1851.1,2.6772]
[1746198044900,4.2878,1851.2,1851.1,2.6772]
[1746198045202,3.2078,1851.2,1851.1,2.6772]
[1746198045603,3.2078,1851.6,1851.2,1.08]
[1746198045810,3.60289,1851.9,1851.8,1.07965]
[1746198046009,6.81069,1851.9,1851.8,1.07965]
[1746198046205,2.5233,1851.9,1851.8,1.07965]
[1746198046404,1.6498,1851.9,1851.8,1.07965]
[1746198046604,1.6498,1851.9,1851.7,2.5887]
[1746198046605,10.94554,1852.1,1852.0,1.07953]
[1746198047709,1.07957,1852.0,1851.9,1.07954]
[1746198047910,1.6575,1852.0,1851.9,1.07954]
[1746198048411,2.73703,1852.0,1851.9,1.07954]
[1746198048611,1.07964,1851.9,1851.8,1.07961]
[1746198048812,1.07964,1851.9,1851.7,1.07965]
[1746198048813,1.07968,1851.8,1851.7,1.07965]
[1746198049113,5.94493,1851.9,1851.8,1.07965]
[1746198049312,4.28743,1851.9,1851.8,1.07965]
[1746198049515,1.07965,1851.8,1851.7,1.07967]
[1746198049710,1.07971,1851.7,1851.6,4.84571]
[1746198050012,1.07976,1851.6,1851.5,1.07978]
[1746198050212,1.07986,1851.5,1851.4,1.07983]
[1746198050412,4.28766,1851.5,1851.4,1.07983]
[1746198050615,1.07988,1851.4,1851.3,1.0799]
[1746198051212,1.07988,1851.4,1851.3,3.696]
[1746198051413,1.07988,1851.4,1851.3,4.77594]
[1746198051613,1.07988,1851.4,1851.3,3.696]
[1746198052112,1.07988,1851.4,1851.3,1.07994]
[1746198052309,1.07998,1851.3,1851.2,1.07995]
[1746198052516,3.2078,1851.3,1851.2,1.07995]
[1746198052811,4.28774,1851.3,1851.2,1.07995]
[1746198053013,3.2078,1851.3,1851.2,1.07995]
[1746198053218,4.28774,1851.3,1851.2,1.07995]
[1746198053709,3.2078,1851.3,1851.2,1.07995]
[1746198054324,4.28774,1851.3,1851.2,1.07995]
[1746198054626,3.2078,1851.3,1851.2,1.07995]
[1746198054819,3.2078,1851.3,1851.2,6.07995]
[1746198055021,3.2078,1851.3,1851.2,6.92645]
[1746198055321,3.2078,1851.3,1851.2,10.62245]
[1746198055928,5.838,1851.5,1851.4,1.07988]
[1746198056128,5.838,1851.5,1851.4,4.77588]
[1746198056529,5.838,1851.5,1851.4,6.46328]
[1746198057725,3.2078,1851.6,1851.5,1.07982]
[1746198057929,3.2078,1851.8,1851.6,1.07976]
[1746198058122,3.2078,1851.8,1851.7,1.07971]
[1746198058527,3.2078,1851.8,1851.7,2.67111]
[1746198059335,3.2078,1851.8,1851.7,6.36711]
[1746198059634,4.28745,1851.8,1851.7,4.77571]
[1746198059933,3.2078,1851.8,1851.7,4.77571]
[1746198060229,3.2078,1851.8,1851.7,1.07971]
[1746198061226,3.2078,1851.8,1851.7,4.77571]
[1746198061526,4.0319,1852.0,1851.9,1.07959]
[1746198062233,4.0319,1852.0,1851.9,4.77559]
[1746198062733,5.6691,1852.0,1851.9,4.77559]
[1746198063030,4.0319,1852.0,1851.9,4.77559]
[1746198063530,3.2078,1852.2,1852.0,1.07953]
[1746198063733,4.845,1852.2,1852.1,2.68977]
[1746198063934,5.92441,1852.2,1852.1,2.68977]
[1746198064136,4.845,1852.2,1852.1,1.07947]
[1746198064833,5.92441,1852.2,1852.1,1.07947]
[1746198065335,5.92441,1852.2,1852.0,5.3467]
[1746198065336,1.07947,1852.1,1852.0,4.77552]
[1746198065533,2.69557,1852.1,1852.0,4.77552]
[1746198066139,2.69557,1852.1,1852.0,1.07952]
[1746198066340,1.07959,1851.9,1851.8,1.07961]
[1746198066532,4.28739,1851.9,1851.8,1.07961]
[1746198066840,3.2078,1851.9,1851.8,1.07961]
[1746198067136,5.6584,1851.9,1851.8,4.77561]
[1746198067534,3.2078,1852.0,1851.8,9.5509]
[1746198067738,3.2078,1852.0,1851.9,2.72979]
[1746198068136,3.2078,1852.0,1851.9,11.42579]
[1746198069138,8.7173966,1852.5,1851.9,10.3462]
[1746198069338,5.3538745,1852.7,1852.6,1.07918]
[1746198069529,3.7408345,1852.7,1852.6,8.04998]
[1746198069838,7.51073693,1853.0,1852.9,1.07901]
[1746198070038,4.49609693,1853.0,1852.9,8.04981]
[1746198070338,3.40277693,1853.0,1852.9,16.74581]
[1746198071137,1.47542693,1853.1,1853.0,1.07895]
[1746198071341,0.33256693,1853.1,1853.0,1.07895]
[1746198071542,6.93e-06,1853.1,1853.0,6.07895]
[1746198072339,10.79927632,1853.4,1853.3,1.07877]
[1746198072547,10.79927632,1853.4,1853.3,8.04857]
[1746198072842,10.79927632,1853.4,1853.3,13.04857]
[1746198073234,30.59794958,1853.7,1853.4,1.07872]
[1746198073437,22.8755228,1853.7,1853.6,4.2864]
[1746198073638,22.8755228,1853.7,1853.6,8.0484]
[1746198073843,22.8755228,1853.7,1853.6,13.0484]
[1746198074042,21.7608128,1853.7,1853.6,55.1557]
[1746198074231,20.6294528,1853.7,1853.6,55.1557]
[1746198074638,20.6294528,1853.7,1853.6,50.1557]
[1746198074946,20.6294528,1853.7,1853.6,48.8474]
[1746198075841,20.6294528,1853.7,1853.6,41.8786]
[1746198076042,22.3698528,1853.7,1853.6,41.8786]
[1746198076247,4.1062,1854.0,1853.9,1.07842]
[1746198076448,0.8984,1854.0,1853.8,1.07843]
[1746198076644,1.7407,1853.9,1853.8,1.07843]
[1746198076835,0.8984,1854.0,1853.9,1.07842]
[1746198077143,4.9485,1854.2,1854.0,1.07834]
[1746198077450,4.9485,1854.2,1854.1,1.07831]
[1746198077637,6.02676,1854.2,1854.0,1.07832]
[1746198077842,6.02676,1854.2,1853.8,3.761]
[1746198077843,3.2078,1854.7,1854.1,6.9678]
[1746198078041,4.0644,1854.8,1854.7,1.07796]
[1746198078245,4.0644,1854.8,1854.3,2.69546]
[1746198078445,3.2078,1854.6,1854.5,1.07804]
[1746198078747,4.28584,1854.6,1854.3,3.76]
[1746198078950,1.7407,1854.5,1854.3,3.76]
[1746198079149,1.7407,1854.5,1854.4,1.07813]
[1746198079345,1.7407,1854.5,1854.3,3.76]
[1746198079651,1.07813,1854.4,1854.2,1.07821]
[1746198079848,4.8511,1854.3,1854.2,1.07821]
[1746198080744,5.7374,1854.3,1854.2,1.07821]
[1746198080947,5.7374,1854.3,1854.1,1.07827]
[1746198081150,2.69578,1854.1,1853.7,1.07851]
[1746198081346,4.28631,1853.8,1853.4,2.69678]
[1746198081544,3.6082,1853.7,1853.3,2.69694]
[1746198081951,1.0786,1853.6,1853.5,1.07861]
[1746198082249,4.8511,1853.6,1853.5,1.07861]
[1746198082443,5.9297,1853.6,1853.5,1.07861]
[1746198082646,1.07869,1853.5,1853.4,1.07869]
[1746198082838,2.79189,1853.5,1853.3,1.07873]
[1746198083048,3.2078,1853.4,1853.2,7.05010479]
[1746198083249,1.7132,1853.3,1853.2,47.85010479]
[1746198083455,1.7132,1853.3,1852.7,5.90556]
[1746198083642,3.2078,1853.2,1853.1,1.07889]
[1746198083848,4.28666,1853.2,1853.1,1.07889]
[1746198084048,4.921,1853.2,1853.1,1.07889]
[1746198084446,1.7132,1853.2,1853.1,1.07889]
[1746198084950,3.2078,1853.4,1853.3,1.07877]
[1746198086046,3.2078,1853.4,1853.3,4.77477]
[1746198086350,0.8863,1853.7,1853.6,1.0786]
[1746198086652,5.17264,1853.7,1853.6,1.0786]
[1746198087045,4.0941,1853.7,1853.6,1.0786]
[1746198087347,5.17264,1853.7,1853.6,1.0786]
[1746198087653,4.0941,1853.7,1853.5,1.07863]
[1746198087855,1.07867,1853.5,1853.4,1.07869]
[1746198088150,1.681,1853.6,1853.4,1.07867]
[1746198088350,1.07866,1853.5,1853.3,1.07873]
[1746198088649,1.681,1853.4,1853.3,1.07873]
[1746198089153,4.8888,1853.4,1853.3,1.07873]
[1746198090147,4.0941,1853.7,1853.3,2.69693]
[1746198090352,5.7647,1853.7,1853.6,1.0786]
[1746198091155,3.2078,1853.7,1853.6,1.0786]
[1746198091544,1.6706,1854.0,1853.9,1.07842]
[1746198092156,4.8784,1854.0,1853.8,1.07846]
[1746198092355,4.8784,1854.0,1853.8,1.07848]
[1746198092549,1.07846,1853.9,1853.7,1.07849]
[1746198092749,3.54498,1853.8,1853.7,1.07849]
[1746198093151,1.07854,1853.7,1853.6,1.07856]
[1746198093449,2.69104,1853.7,1853.6,1.07856]
[1746198094353,1.6125,1853.7,1853.3,9.67672]
[1746198094654,2.69107,1853.7,1853.6,1.0786]
[1746198095148,1.6125,1853.7,1853.6,1.0786]
[1746198095653,4.0618,1853.8,1853.7,1.07854]
[1746198095654,0.854,1853.8,1853.7,1.07854]
[1746198095955,11.75803,1853.8,1853.1,9.67696]
[1746198096157,4.28651,1853.5,1853.4,1.07872]
[1746198096758,1.07875,1853.4,1853.3,1.07873]
[1746198096967,2.68305,1853.4,1853.3,1.07873]
[1746198097253,1.6043,1853.4,1853.3,1.07873]
[1746198097453,2.68302,1853.4,1853.3,1.07873]
[1746198097660,3.54736,1853.4,1853.3,1.07877]
[1746198099659,1.07882,1853.3,1853.2,1.0788]
[1746198099959,2.5738,1853.3,1853.2,1.0788]
[1746198101659,4.28649,1853.5,1853.4,1.07872]
[1746198101861,3.2078,1853.5,1853.1,1.6358]